bitfinex-derivatives/quotes_SOLF0:USTF0_20260302
["timestamp","ask_amount","ask_price","bid_price","bid_amount"]
[1772450768772,10.725,83.918,83.871,9.4320632]
[1772450771064,3.63760315,83.92,83.871,9.4320632]
[1772450772163,3.63760315,83.91,83.871,9.4320632]
[1772450772467,3.63760315,83.9,83.858,9.43850627]
[1772450773468,10.727,83.899,83.858,9.43850627]
[1772450775167,3.63760315,83.9,83.858,9.43850627]
[1772450775369,10.726,83.908,83.861,9.44641487]
[1772450775558,3.63760315,83.9,83.861,9.44641487]
[1772450776973,3.63760315,83.89,83.861,9.44641487]
[1772450778874,3.63760315,83.9,83.861,9.44641487]
[1772450779069,10.728,83.896,83.861,9.44641487]
[1772450779572,3.63760315,83.89,83.844,9.45625823]
[1772450779770,3.63760315,83.88,83.844,9.45625823]
[1772450783482,10.729,83.888,83.844,9.45625823]
[1772450785284,10.73,83.881,83.844,9.45625823]
[1772450788178,10.73,83.877,83.844,9.45625823]
[1772450788785,3.63760315,83.88,83.844,9.45625823]
[1772450791290,10.729,83.885,83.844,9.45625823]
[1772450792391,14.48087185,83.932,83.832,292.80377872]
[1772450792392,10.728,83.896,83.851,9.42709739]
[1772450792880,3.63760315,83.89,83.84,13.06470054]
[1772450793083,32.45164748,83.922,83.84,13.06470054]
[1772450793084,3.63760315,83.88,83.84,9.42709739]
[1772450793286,10.73,83.878,83.84,9.42709739]
[1772450793487,3.63760315,83.87,83.84,9.42709739]
[1772450795194,10.731,83.868,83.84,9.42709739]
[1772450799900,10.73,83.877,83.84,9.42709739]
[1772450800396,21.452,83.912,83.84,9.42709739]
[1772450800397,3.63760315,83.87,83.84,9.42709739]
[1772450800799,10.731,83.868,83.84,9.42709739]
[1772450808100,10.732,83.862,83.821,9.43695826]
[1772450809702,3.63760315,83.86,83.821,9.43695826]
[1772450810004,10.732,83.862,83.821,9.43695826]
[1772450812703,10.733,83.857,83.821,9.43695826]
[1772450815905,3.63760315,83.88,83.83,3.63760315]
[1772450816108,3.63760315,83.89,83.83,3.63760315]
[1772450816906,3.63760315,83.88,83.83,3.63760315]
[1772450817302,10.73,83.877,83.83,3.63760315]
[1772450818104,10.73,83.877,83.828,10.736]
[1772450818704,10.73,83.877,83.83,3.63760315]
[1772450819804,3.63760315,83.88,83.831,10.736]
[1772450820203,3.63760315,83.88,83.83,14.76284778]
[1772450820400,3.63760315,83.87,83.824,11.12524463]
[1772450820602,3.63760315,83.87,83.77,21.488]
[1772450820603,3.63760315,83.87,83.818,11.12524463]
[1772450821012,10.731,83.869,83.82,3.63760315]
[1772450821813,3.63760315,83.86,83.819,11.12524463]
[1772450822213,3.63760315,83.86,83.82,11.12524463]
[1772450822512,11.00164748,83.906,83.82,11.12524463]
[1772450822513,3.63760315,83.87,83.82,11.12524463]
[1772450822714,3.63760315,83.86,83.82,11.12524463]
[1772450822910,3.63760315,83.84,83.804,11.12524463]
[1772450823215,3.63760315,83.85,83.804,11.12524463]
[1772450824110,3.63760315,83.85,83.803,11.12524463]
[1772450824315,3.63760315,83.85,83.804,11.12524463]
[1772450824613,10.733,83.856,83.81,3.63760315]
[1772450825006,10.733,83.856,83.808,11.12524463]
[1772450825205,10.733,83.856,83.81,3.63760315]
[1772450825609,10.732,83.865,83.82,3.63760315]
[1772450825810,3.63760315,83.88,83.83,3.63760315]
[1772450827310,10.731,83.873,83.83,3.63760315]
[1772450828014,10.731,83.873,83.826,11.12524463]
[1772450828416,3.63760315,83.88,83.83,3.63760315]
[1772450829313,3.63760315,83.88,83.831,11.12524463]
[1772450829513,3.63760315,83.88,83.83,14.76284778]
[1772450830113,3.63760315,83.88,83.831,11.12524463]
[1772450830316,10.73,83.879,83.831,11.12524463]
[1772450831120,10.73,83.879,83.832,11.12524463]
[1772450832822,10.73,83.879,83.837,11.12524463]
[1772450834220,10.73,83.879,83.838,11.12524463]
[1772450834524,10.731,83.872,83.838,11.12524463]
[1772450836325,10.731,83.872,83.839,11.12524463]
[1772450837325,10.731,83.872,83.84,11.12524463]
[1772450838219,10.731,83.869,83.836,11.12524463]
[1772450838424,10.731,83.869,83.831,11.12524463]
[1772450839730,10.731,83.869,83.836,11.12524463]
[1772450842525,10.73,83.877,83.836,11.12524463]
[1772450842832,3.64107381,83.89,83.846,11.12524463]
[1772450844132,3.64107381,83.89,83.845,11.12524463]
[1772450844436,10.729,83.885,83.845,11.12524463]
[1772450845526,3.64107381,83.88,83.845,11.12524463]
[1772450847934,3.64107381,83.89,83.843,11.12524463]
[1772450848734,11.92,83.933,83.839,11.12524463]
[1772450848735,3.64107381,83.88,83.839,11.12524463]
[1772450848924,10.729,83.889,83.839,11.12524463]
[1772450851935,10.73,83.882,83.839,11.12524463]
[1772450852438,3.64107381,83.88,83.838,11.12524463]
[1772450854231,3.64107381,83.87,83.822,11.12524463]
[1772450855338,10.732,83.862,83.822,11.12524463]
[1772450857533,10.732,83.862,83.813,10.738]
[1772450857534,3.64107381,83.86,83.818,11.12524463]
[1772450857733,3.64107381,83.86,83.822,11.12524463]
[1772450858139,3.64107381,83.86,83.821,11.12524463]
[1772450861636,3.64107381,83.86,83.813,10.738]
[1772450861637,3.64107381,83.85,83.813,11.12524463]
[1772450861842,3.64107381,83.85,83.801,11.12524463]
[1772450862135,315.89951605,83.891,83.791,11.12524463]
[1772450862136,3.64107381,83.83,83.791,11.12524463]
[1772450862338,3.64107381,83.83,83.787,11.12524463]
[1772450862934,10.735,83.838,83.787,11.12524463]
[1772450863244,10.735,83.838,83.785,11.12524463]
[1772450863540,10.735,83.838,83.79,3.64107381]
[1772450864641,10.735,83.838,83.784,11.12524463]
[1772450865146,10.735,83.838,83.783,11.12524463]
[1772450865345,10.735,83.838,83.79,3.64107381]
[1772450866034,10.736,83.831,83.79,3.64107381]
[1772450872246,10.737,83.824,83.79,3.64107381]
[1772450872445,10.737,83.824,83.781,457.97060642]
[1772450872446,10.737,83.824,83.782,11.12524463]
[1772450872745,3.64107381,83.83,83.781,457.97060642]
[1772450874146,3.64107381,83.83,83.783,10.742]
[1772450875243,3.64107381,83.82,83.783,10.742]
[1772450876243,3.64107381,83.81,83.762,11.12524463]
[1772450876437,3.64107381,83.81,83.76,3.64107381]
[1772450878246,3.64107381,83.81,83.768,10.744]
[1772450880554,3.64107381,83.81,83.76,3.64107381]
[1772450881852,10.738,83.817,83.757,32.52482901]
[1772450881853,3.64107381,83.8,83.757,32.52482901]
[1772450882354,3.64107381,83.8,83.758,10.745]
[1772450882651,10.738,83.817,83.758,10.745]
[1772450882652,3.64107381,83.81,83.758,10.745]
[1772450882852,3.64107381,83.81,83.76,3.64107381]
[1772450884348,10.739,83.809,83.76,3.64107381]
[1772450884853,10.74,83.802,83.76,3.64107381]
[1772450885154,3.64107381,83.79,83.74,3.64107381]
[1772450885755,10.742,83.788,83.74,3.64107381]
[1772450887252,10.741,83.796,83.75,3.64107381]
[1772450887852,2.0772647,83.825,83.74,3.64107381]
[1772450887853,10.742,83.788,83.74,3.64107381]
[1772450888059,3.64107381,83.77,83.72,3.64107381]
[1772450888354,3.64107381,83.76,83.71,3.64107381]
[1772450888946,3.64107381,83.77,83.71,3.64107381]
[1772450889146,3.64107381,83.77,83.676,14.86077873]
[1772450889147,3.64107381,83.76,83.682,11.08503411]
[1772450889354,167.106,83.785,83.65,3.64107381]
[1772450889562,503.1602647,83.825,83.65,14.70051474]
[1772450889563,3.64107381,83.7,83.65,14.70051474]
[1772450889752,3.64107381,83.71,83.65,3.64107381]
[1772450889953,3.64107381,83.71,83.66,3.64107381]
[1772450890154,3.64107381,83.72,83.66,3.64107381]
[1772450890360,3.64107381,83.72,83.67,3.64107381]
[1772450890559,3.65476316,83.72,83.67,3.65476316]
[1772450890760,3.65476316,83.71,83.66,3.65476316]
[1772450891859,3.65476316,83.7,83.65,3.65476316]
[1772450892363,167.166,83.755,83.66,3.65476316]
[1772450892557,3.65476316,83.71,83.66,3.65476316]
[1772450892761,3.65476316,83.71,83.65,3.65476316]
[1772450893061,3.65476316,83.71,83.66,3.65476316]
[1772450894263,3.65476316,83.72,83.67,3.65476316]
[1772450894857,10.751,83.719,83.67,3.65476316]
[1772450895063,3.65476316,83.71,83.66,3.65476316]
[1772450896666,10.751,83.719,83.67,3.65476316]
[1772450897069,3.65476316,83.71,83.66,3.65476316]
[1772450897569,10.752,83.709,83.66,3.65476316]
[1772450897966,3.65476316,83.7,83.65,3.65476316]
[1772450898263,10.752,83.709,83.66,3.65476316]
[1772450899975,3.65476316,83.71,83.66,3.65476316]
[1772450900175,14.40476316,83.72,83.67,3.65476316]
[1772450901572,3.65476316,83.73,83.68,3.65476316]
[1772450901877,3.65476316,83.73,83.665,10.757]
[1772450901878,3.65476316,83.72,83.67,3.65476316]
[1772450904272,10.751,83.718,83.67,3.65476316]
[1772450912580,10.751,83.718,83.662,10.758]
[1772450912777,10.751,83.718,83.67,3.65476316]
[1772450912973,3.65476316,83.74,83.69,3.65476316]
[1772450913274,3.65476316,83.75,83.7,3.65476316]
[1772450913478,21.482,83.794,83.69,3.65476316]
[1772450913479,3.65476316,83.74,83.69,3.65476316]
[1772450913680,3.65476316,83.75,83.7,3.65476316]
[1772450913875,21.482,83.794,83.71,3.65476316]
[1772450914081,10.745,83.759,83.71,3.65476316]
[1772450914879,10.748,83.743,83.686,10.755]
[1772450915073,3.65476316,83.75,83.7,3.65476316]
[1772450915580,10.747,83.747,83.7,3.65476316]
[1772450916877,3.65476316,83.75,83.71,3.65476316]
[1772450917076,10.746,83.756,83.71,3.65476316]
[1772450920888,10.747,83.749,83.71,3.65476316]
[1772450921483,3.65476316,83.76,83.71,3.65476316]
[1772450921484,10.746,83.758,83.71,3.65476316]
[1772450922389,10.744,83.769,83.72,3.65476316]
[1772450922686,3.65476316,83.77,83.72,3.65476316]
[1772450924291,14.39876316,83.77,83.72,3.65476316]
[1772450926091,10.744,83.77,83.72,3.65476316]
[1772450927292,10.745,83.762,83.72,3.65476316]
[1772450927592,10.745,83.762,83.71,10.752]
[1772450927787,3.65476316,83.76,83.666,14.75644812]
[1772450927994,3.65476316,83.75,83.7,3.65476316]
[1772450928193,167.078,83.799,83.651,21.519]
[1772450928194,3.65476316,83.73,83.68,3.65476316]
[1772450928391,3.65476316,83.72,83.67,3.65476316]
[1772450928794,3.65476316,83.71,83.66,3.65476316]
[1772450928990,10.751,83.718,83.664,10.757]
[1772450929394,10.751,83.718,83.67,3.65476316]
[1772450930291,10.75,83.726,83.671,10.757]
[1772450930485,3.65476316,83.73,83.68,3.65476316]
[1772450930689,3.65476316,83.72,83.671,10.757]
[1772450931290,10.751,83.718,83.671,10.757]
[1772450931797,10.751,83.718,83.64,14.75644812]
[1772450931798,3.65476316,83.71,83.663,10.758]
[1772450934997,3.65476316,83.71,83.67,10.757]
[1772450935985,3.65476316,83.71,83.678,10.756]
[1772450936587,3.65476316,83.72,83.678,10.756]
[1772450936790,10.75,83.727,83.669,10.757]
[1772450937096,3.65476316,83.71,83.669,10.757]
[1772450937296,3.65476316,83.72,83.67,3.65476316]
[1772450937597,3.65476316,83.73,83.67,3.65476316]
[1772450937796,3.65476316,83.72,83.67,3.65476316]
[1772450938095,3.65476316,83.72,83.682,10.755]
[1772450940696,325.30321994,83.759,83.68,3.65476316]
[1772450940697,3.65476316,83.73,83.68,3.65476316]
[1772450942498,14.40276316,83.74,83.69,3.65476316]
[1772450943894,10.749,83.732,83.69,3.65476316]
[1772450946404,10.749,83.729,83.69,3.65476316]
[1772450946604,10.749,83.729,83.681,10.755]
[1772450950608,3.65353027,83.73,83.681,10.755]
[1772450952011,3.65353027,83.73,83.689,10.754]
[1772450953009,3.65353027,83.73,83.695,10.753]
[1772450953306,3.65353027,83.74,83.695,10.753]
[1772450953608,3.65353027,83.73,83.695,10.753]
[1772450956013,3.65353027,83.73,83.687,10.755]
[1772450958710,3.65353027,83.73,83.68,3.65353027]
[1772450959218,3.65353027,83.73,83.677,10.756]
[1772450960217,10.749,83.729,83.677,10.756]
[1772450960816,3.65353027,83.72,83.677,10.756]
[1772450961514,10.749,83.729,83.677,10.756]
[1772450962410,10.749,83.729,83.68,3.65353027]
[1772450962721,3.65353027,83.72,83.67,3.65353027]
[1772450964321,10.751,83.716,83.671,10.757]
[1772450966726,3.65353027,83.72,83.671,10.757]
[1772450967124,3.65353027,83.72,83.678,10.756]
[1772450970328,325.30321994,83.759,83.627,67.18153444]
[1772450970329,3.65353027,83.71,83.67,10.757]
[1772450971431,3.65353027,83.72,83.67,10.757]
[1772450972225,3.65353027,83.72,83.66,3.65353027]
[1772450972226,3.65353027,83.72,83.677,10.756]
[1772450974828,3.65353027,83.72,83.684,10.755]
[1772450975032,3.65353027,83.73,83.684,10.755]
[1772450975233,3.65353027,83.73,83.67,3.65353027]
[1772450975933,3.65353027,83.73,83.673,14.75644812]
[1772450976134,3.65353027,83.73,83.59,167.495]
[1772450976135,3.65353027,83.74,83.68,18.40997839]
[1772450976326,3.65353027,83.74,83.68,3.65353027]
[1772450976524,3.65353027,83.74,83.68,18.40997839]
[1772450977237,3.65353027,83.74,83.69,3.65353027]
[1772450977735,3.65353027,83.74,83.688,10.754]
[1772450979031,3.65353027,83.75,83.694,14.75644812]
[1772450979432,3.65353027,83.74,83.699,10.753]
[1772450980135,3.65353027,83.74,83.694,14.75644812]
[1772450981231,3.65353027,83.74,83.693,14.75644812]
[1772450982934,10.748,83.739,83.693,14.75644812]
[1772450984329,10.748,83.739,83.694,10.754]
[1772450984630,3.65353027,83.74,83.694,10.754]
[1772450987139,3.65353027,83.74,83.704,11.16736161]
[1772450991244,3.65353027,83.73,83.703,11.16736161]
[1772450991840,3.65353027,83.73,83.704,10.752]
[1772450992743,3.65353027,83.73,83.703,11.16736161]
[1772450995847,3.65353027,83.73,83.702,11.16736161]
[1772450996147,3.65353027,83.73,83.701,11.16736161]
[1772450996444,325.30321994,83.759,83.67,0.00044812]
[1772450996445,10.752,83.708,83.67,0.00044812]
[1772450996641,10.752,83.708,83.658,10.758]
[1772450996840,3.65353027,83.7,83.658,10.758]
[1772450997543,3.65353027,83.71,83.665,10.757]
[1772450998147,3.65353027,83.71,83.672,10.756]
[1772451001646,3.65353027,83.7,83.672,10.756]
[1772451001947,3.65353027,83.71,83.672,10.756]
[1772451002947,3.65353027,83.7,83.664,10.757]
[1772451004052,3.65353027,83.71,83.65,3.65353027]
[1772451004350,3.65353027,83.71,83.66,3.65353027]
[1772451004741,3.65353027,83.7,83.634,22.31477589]
[1772451004948,3.65353027,83.68,83.636,10.761]
[1772451005148,3.65353027,83.68,83.634,22.31477589]
[1772451005554,3.65353027,83.68,83.62,3.65353027]
[1772451005856,3.65353027,83.67,83.62,3.65353027]
[1772451006154,3.65353027,83.67,83.626,10.762]
[1772451008053,3.65353027,83.67,83.604,22.31477589]
[1772451008054,3.65353027,83.66,83.61,3.65353027]
[1772451008253,3.65353027,83.67,83.62,3.65353027]
[1772451010250,10.757,83.669,83.62,3.65353027]
[1772451010453,3.65936096,83.66,83.613,10.764]
[1772451010848,3.65936096,83.65,83.575,22.31477589]
[1772451011057,11.11445079,83.718,83.6,3.65936096]
[1772451011256,3.65936096,83.66,83.6,3.65936096]
[1772451011457,3.65936096,83.66,83.612,10.764]
[1772451014965,3.65936096,83.66,83.622,10.763]
[1772451015459,11.11445079,83.735,83.603,167.467]
[1772451015659,3.65936096,83.7,83.64,3.65936096]
[1772451015958,3.65936096,83.7,83.65,3.65936096]
[1772451017363,3.65936096,83.7,83.654,10.759]
[1772451019059,10.749,83.733,83.617,188.968]
[1772451019261,3.65936096,83.7,83.65,3.65936096]
[1772451019458,3.65936096,83.71,83.66,3.65936096]
[1772451019863,3.65936096,83.71,83.625,21.526]
[1772451020063,11.11445079,83.769,83.623,167.429]
[1772451020064,3.65936096,83.7,83.623,167.429]
[1772451020361,0.00036096,83.7,83.65,3.65936096]
[1772451020665,0.00036096,83.7,83.66,3.65936096]
[1772451021165,0.00036096,83.7,83.672,10.756]
[1772451021366,0.00036096,83.7,83.65,3.65936096]
[1772451021761,3.65936096,83.69,83.648,10.76]
[1772451021962,3.65936096,83.68,83.648,10.76]
[1772451022467,3.65936096,83.69,83.656,10.759]
[1772451022766,11.93,83.754,83.64,3.65936096]
[1772451023063,3.65936096,83.69,83.64,3.65936096]
[1772451023464,11.93,83.754,83.601,79.63677589]
[1772451023465,3.65936096,83.7,83.65,3.65936096]
[1772451024362,3.65936096,83.71,83.66,3.65936096]
[1772451026460,3.65936096,83.7,83.65,3.65936096]
[1772451026767,3.65936096,83.7,83.651,10.759]
[1772451026965,3.65936096,83.7,83.66,3.65936096]
[1772451027365,3.65936096,83.71,83.66,3.65936096]
[1772451028872,3.65936096,83.73,83.68,3.65936096]
[1772451029074,325.30321994,83.759,83.68,3.65936096]
[1772451029275,3.65936096,83.73,83.68,3.65936096]
[1772451030181,3.65936096,83.73,83.68,14.41536096]
[1772451031278,3.65936096,83.73,83.688,10.754]
[1772451032479,3.65936096,83.73,83.656,14.7851834]
[1772451032480,3.65936096,83.74,83.694,10.754]
[1772451033979,3.65936096,83.73,83.685,10.755]
[1772451035081,10.747,83.747,83.649,21.519]
[1772451035082,3.65936096,83.74,83.693,10.754]
[1772451036483,3.65936096,83.73,83.681,10.755]
[1772451043487,325.30321994,83.759,83.71,3.65936096]
[1772451043792,3.65936096,83.75,83.7,3.65936096]
[1772451043986,325.30321994,83.759,83.7,3.65936096]
[1772451044387,325.30321994,83.759,83.704,10.752]
[1772451044786,325.30321994,83.759,83.71,3.65936096]
[1772451044984,10.745,83.763,83.712,10.751]
[1772451045188,3.65936096,83.76,83.712,10.751]
[1772451046590,3.65936096,83.76,83.72,10.75]
[1772451046889,3.65936096,83.76,83.668,21.514]
[1772451046890,3.65936096,83.78,83.73,3.65936096]
[1772451048290,3.65936096,83.78,83.734,10.749]
[1772451049995,3.65936096,83.78,83.691,21.508]
[1772451049996,3.65936096,83.76,83.725,10.75]
[1772451050295,3.65936096,83.76,83.732,10.749]
[1772451050898,3.65936096,83.77,83.732,10.749]
[1772451051300,3.65936096,83.76,83.724,10.75]
[1772451052900,3.65936096,83.76,83.715,10.751]
[1772451053100,3.65936096,83.76,83.72,3.65936096]
[1772451053902,3.65936096,83.76,83.715,10.751]
[1772451054599,3.65936096,83.76,83.722,10.75]
[1772451054796,3.65936096,83.76,83.71,3.65936096]
[1772451054995,3.65936096,83.75,83.7,3.65936096]
[1772451056302,3.65936096,83.75,83.705,10.752]
[1772451057309,3.65936096,83.76,83.713,10.751]
[1772451057804,3.65936096,83.77,83.722,10.75]
[1772451058000,32.42307573,83.796,83.73,3.65936096]
[1772451058001,3.65936096,83.78,83.73,3.65936096]
[1772451058701,10.742,83.788,83.739,10.748]
[1772451059803,10.738,83.815,83.763,10.745]
[1772451060005,3.65936096,83.81,83.763,10.745]
[1772451060206,2.0773143,83.835,83.74,3.65936096]
[1772451060404,3.65936096,83.79,83.74,3.65936096]
[1772451060609,3.65936096,83.79,83.748,10.747]
[1772451061103,2.0773143,83.835,83.71,21.504]
[1772451061104,3.65936096,83.78,83.739,10.748]
[1772451062008,3.65936096,83.77,83.739,10.748]
[1772451062604,3.65936096,83.78,83.739,10.748]
[1772451063703,11.11445079,83.827,83.73,3.65936096]
[1772451063906,2.0773143,83.835,83.695,167.284]
[1772451063907,3.65936096,83.8,83.75,3.65936096]
[1772451064207,3.65936096,83.79,83.751,10.746]
[1772451065609,3.65936096,83.78,83.751,10.746]
[1772451068809,2.0773143,83.835,83.76,3.65936096]
[1772451069011,3.65936096,83.83,83.77,3.65936096]
[1772451069209,3.65936096,83.82,83.77,3.65936096]
[1772451069712,3.65936096,83.81,83.76,3.65936096]
[1772451069913,3.65936096,83.8,83.75,3.65936096]
[1772451070513,3.64740922,83.8,83.75,3.64740922]
[1772451071116,3.64740922,83.78,83.73,3.64740922]
[1772451071318,3.64740922,83.78,83.72,3.64740922]
[1772451072110,3.64740922,83.78,83.73,3.64740922]
[1772451072314,3.64740922,83.78,83.742,10.748]
[1772451072510,3.64740922,83.78,83.73,3.64740922]
[1772451074412,3.64740922,83.78,83.749,10.747]
[1772451077822,3.64740922,83.78,83.702,58.10477589]
[1772451077823,3.64740922,83.78,83.72,3.64740922]
[1772451079321,3.64740922,83.78,83.738,10.748]
[1772451084723,3.64740922,83.77,83.738,10.748]
[1772451085625,3.64740922,83.78,83.738,10.748]
[1772451086026,3.64740922,83.8,83.74,3.64740922]
[1772451086324,3.64740922,83.8,83.75,3.64740922]
[1772451086524,3.64740922,83.8,83.76,10.745]
[1772451086725,3.64740922,83.79,83.76,10.745]
[1772451090224,3.64740922,83.79,83.752,10.746]
[1772451090428,3.64740922,83.78,83.752,10.746]
[1772451090829,3.64740922,83.78,83.744,10.747]
[1772451092826,3.64740922,83.79,83.744,10.747]
[1772451094031,3.64740922,83.78,83.736,10.748]
[1772451094431,3.64740922,83.77,83.736,10.748]
[1772451094927,3.64740922,83.78,83.736,10.748]
[1772451097837,3.64740922,83.77,83.728,10.749]
[1772451098033,3.64740922,83.76,83.728,10.749]
[1772451098833,3.64740922,83.77,83.728,10.749]
[1772451100037,3.64740922,83.76,83.728,10.749]
[1772451101036,3.64740922,83.77,83.72,3.64740922]
[1772451101342,3.64740922,83.78,83.73,3.64740922]
[1772451102343,3.64740922,83.78,83.745,10.747]
[1772451102845,3.64740922,83.78,83.734,10.748]
[1772451103046,3.64740922,83.78,83.73,3.64740922]
[1772451103943,3.64740922,83.78,83.7,21.506]
[1772451103944,3.64740922,83.78,83.723,14.75837146]
[1772451104343,3.64740922,83.78,83.741,10.748]
[1772451105840,3.64740922,83.79,83.741,10.748]
[1772451106037,3.64740922,83.78,83.741,10.748]
[1772451106238,3.64740922,83.79,83.748,10.747]
[1772451109037,3.64740922,83.79,83.74,3.64740922]
[1772451109239,3.64740922,83.78,83.733,14.75837146]
[1772451110349,3.64740922,83.78,83.736,10.748]
[1772451113945,3.64740922,83.79,83.736,10.748]
[1772451114144,3.64740922,83.79,83.736,25.50637146]
[1772451114544,3.64740922,83.79,83.741,10.748]
[1772451114752,14.38740922,83.8,83.741,10.748]
[1772451114948,3.64740922,83.8,83.75,3.64740922]
[1772451116257,3.64740922,83.8,83.745,14.75837146]
[1772451116455,3.64740922,83.79,83.745,14.75837146]
[1772451116859,3.64740922,83.79,83.747,10.747]
[1772451118555,3.64740922,83.8,83.755,10.746]
[1772451121958,3.64740922,83.78,83.733,14.75837146]
[1772451122158,3.64740922,83.78,83.73,18.40578068]
[1772451122462,3.64740922,83.77,83.72,3.64740922]
[1772451122963,3.64740922,83.76,83.708,14.75837146]
[1772451123164,3.64740922,83.74,83.703,10.752]
[1772451125364,3.64740922,83.76,83.711,10.751]
[1772451126165,3.64740922,83.76,83.7,3.64740922]
[1772451126166,3.64740922,83.76,83.72,10.75]
[1772451126363,3.64740922,83.75,83.7,3.64740922]
[1772451127266,3.64740922,83.74,83.7,3.64740922]
[1772451127468,3.64740922,83.74,83.697,10.753]
[1772451128764,3.64740922,83.76,83.71,3.64740922]
[1772451130265,3.64740922,83.76,83.716,10.751]
[1772451130567,3.64740922,83.77,83.72,3.64740922]
[1772451131161,3.64740922,83.77,83.71,3.64740922]
[1772451131471,3.64740922,83.77,83.72,3.64740922]
[1772451132567,3.6504431,83.77,83.72,3.6504431]
[1772451132764,3.6504431,83.77,83.725,10.75]
[1772451135769,184.18434825,83.808,83.74,3.6504431]
[1772451135969,3.6504431,83.79,83.74,3.6504431]
[1772451136166,3.6504431,83.79,83.73,3.6504431]
[1772451136364,3.6504431,83.78,83.743,10.747]
[1772451136872,3.6504431,83.77,83.72,3.6504431]
[1772451137676,3.6504431,83.77,83.733,10.749]
[1772451138067,3.6504431,83.78,83.733,10.749]
[1772451138674,3.6504431,83.79,83.742,10.748]
[1772451140174,3.6504431,83.78,83.742,10.748]
[1772451141178,3.6504431,83.79,83.75,10.747]
[1772451142473,3.6504431,83.79,83.74,3.6504431]
[1772451142681,3.6504431,83.8,83.757,10.746]
[1772451147082,11.93,83.841,83.777,10.743]
[1772451147388,3.6504431,83.81,83.76,3.6504431]
[1772451147586,3.6504431,83.81,83.769,10.744]
[1772451147788,3.6504431,83.82,83.77,3.6504431]
[1772451147981,3.6504431,83.83,83.78,3.6504431]
[1772451149085,3.6504431,83.82,83.77,3.6504431]
[1772451149281,3.6504431,83.83,83.78,3.6504431]
[1772451149891,3.6504431,83.82,83.782,10.742]
[1772451150087,10.736,83.829,83.782,10.742]
[1772451150293,3.6504431,83.82,83.782,10.742]
[1772451150492,3.6504431,83.82,83.774,10.743]
[1772451151192,3.6504431,83.82,83.781,10.742]
[1772451156096,3.6504431,83.83,83.781,10.742]
[1772451156295,3.6504431,83.81,83.773,10.744]
[1772451156496,3.6504431,83.82,83.76,3.6504431]
[1772451156690,3.6504431,83.82,83.77,3.6504431]
[1772451157986,3.6504431,83.83,83.77,3.6504431]
[1772451158198,3.6504431,83.83,83.788,10.742]
[1772451158792,10.735,83.837,83.788,10.742]
[1772451158999,3.6504431,83.83,83.788,10.742]
[1772451159896,3.6504431,83.82,83.788,10.742]
[1772451160096,3.6504431,83.83,83.788,10.742]
[1772451163100,3.6504431,83.82,83.788,10.742]
[1772451166902,3.6504431,83.81,83.76,3.6504431]
[1772451168205,3.6504431,83.81,83.771,10.744]
[1772451169602,3.6504431,83.82,83.778,10.743]
[1772451169802,3.6504431,83.81,83.778,10.743]
[1772451173009,3.6504431,83.81,83.769,10.744]
[1772451173611,3.6504431,83.81,83.776,10.743]
[1772451175114,10.736,83.83,83.784,10.742]
[1772451175412,3.6504431,83.81,83.784,10.742]
[1772451176710,10.736,83.83,83.784,10.742]
[1772451176711,3.6504431,83.82,83.784,10.742]
[1772451180810,2.07662632,83.865,83.75,3.6504431]
[1772451180811,3.6504431,83.8,83.75,3.6504431]
[1772451181011,3.6504431,83.81,83.75,3.6504431]
[1772451181210,3.6504431,83.81,83.771,10.744]
[1772451181616,3.6504431,83.82,83.771,10.744]
[1772451182318,3.6504431,83.82,83.78,10.743]
[1772451183514,3.6504431,83.82,83.772,10.744]
[1772451184216,3.6504431,83.83,83.77,3.6504431]
[1772451184911,3.6504431,83.82,83.77,3.6504431]
[1772451185415,3.6504431,83.82,83.786,10.742]
[1772451186811,10.736,83.836,83.786,10.742]
[1772451187010,3.6504431,83.83,83.786,10.742]
[1772451190417,3.6504431,83.82,83.778,10.743]
[1772451192526,3.64570105,83.82,83.778,10.743]
[1772451197123,3.64570105,83.81,83.778,10.743]
[1772451197426,3.64570105,83.81,83.771,10.744]
[1772451197829,3.64570105,83.82,83.771,10.744]
[1772451198131,186.83518249,83.839,83.777,10.743]